fUST/lending_fUST_20250827
["ID","MTS","AMOUNT","RATE_DAILY","PERIOD"]
[381540489,1756272643142,-151.0,0.00029696,13]
[381540490,1756272643151,-367.72,0.00029712,15]
[381540491,1756272643161,-660.0,0.00029751,2]
[381540492,1756272643176,-2000.0,0.00029769,2]
[381540493,1756272643186,-151.0,0.00029769,7]
[381540494,1756272643196,-151.0,0.00029769,7]
[381540495,1756272643205,-151.0,0.00029769,7]
[381540496,1756272643216,-151.0,0.00029769,7]
[381540497,1756272643226,-151.533464,0.00029769,7]
[381540498,1756272643235,-189.288119,0.00029769,7]
[381540499,1756272643245,-177.197055,0.00029769,7]
[381540500,1756272643256,-177.197055,0.00029769,7]
[381540501,1756272643265,-177.197055,0.00029769,7]
[381540502,1756272643275,-177.197055,0.00029769,7]
[381540503,1756272643285,-151.0,0.00029769,7]
[381540504,1756272643295,-151.0,0.00029769,7]
[381540505,1756272643306,-151.0,0.00029769,7]
[381540506,1756272643315,-151.0,0.00029769,7]
[381540507,1756272643325,-174.391319,0.00029769,7]
[381540508,1756272643335,-174.391319,0.00029769,7]
[381540509,1756272643345,-174.391319,0.00029769,7]
[381540510,1756272643355,-174.391319,0.00029769,7]
[381540511,1756272643364,-151.0,0.00029769,7]
[381540512,1756272643374,-151.0,0.00029769,7]
[381540513,1756272643384,-151.0,0.00029779,2]
[381540514,1756272643393,-198.0,0.00029796,2]
[381540515,1756272643403,-151.0,0.000298,20]
[381540516,1756272643413,-367.72,0.00029812,15]
[381540517,1756272643422,-4172.81541695,0.0002982,2]
[381540518,1756272643432,-899.999999,0.000299,2]
[381540519,1756272643441,-367.72,0.00029912,15]
[381540520,1756272643451,-150.4,0.00029917,15]
[381540521,1756272643460,-543.0,0.0002997,13]
[381540522,1756272643470,-198.0,0.0002997,13]
[381540523,1756272643479,-198.0,0.0002997,13]
[381540524,1756272643489,-500.0,0.00029973,5]
[381540525,1756272643499,-151.0,0.00029973,7]
[381540526,1756272643508,-151.0,0.00029973,7]
[381540527,1756272643520,-151.0,0.00029973,7]
[381540528,1756272643531,-173.299987,0.00029973,7]
[381540529,1756272643721,-3842.17,0.00029996,2]
[381540530,1756272643753,-202.85787161,0.00029997,10]
[381540531,1756272643763,-199955.4534437,0.00029998,120]
[381540532,1756272643773,-151.4616,0.00029998,7]
[381540533,1756272643783,-151.0,0.00029998,7]
[381540534,1756272643792,-151.0,0.00029998,7]
[381540535,1756272643802,-177.197055,0.00029998,7]
[381540536,1756272643811,-177.197055,0.00029998,7]
[381540537,1756272643821,-177.197055,0.00029998,7]
[381540538,1756272643832,-177.197055,0.00029998,7]
[381540539,1756272643841,-151.0,0.00029998,7]
[381540540,1756272643851,-151.0,0.00029998,7]
[381540541,1756272643860,-151.0,0.00029998,7]
[381540542,1756272643870,-151.0,0.00029998,7]
[381540543,1756272643880,-174.391319,0.00029998,7]
[381540544,1756272643890,-174.391319,0.00029998,7]
[381540545,1756272643900,-174.391319,0.00029998,7]
[381540546,1756272643910,-174.391319,0.00029998,7]
[381540547,1756272643921,-151.0,0.00029998,7]
[381540548,1756272643930,-155.805943,0.00029998,7]
[381540549,1756272643940,-155.805943,0.00029998,7]
[381540550,1756272643949,-155.805943,0.00029998,7]
[381540551,1756272643958,-155.805947,0.00029998,7]
[381540552,1756272643967,-151.0,0.00029998,7]
[381540553,1756272643981,-151.0,0.00029998,7]
[381540554,1756272643990,-202.03781,0.00029998,7]
[381540555,1756272644000,-4000.0,0.0003,4]
[381540556,1756272644009,-2392.84664262,0.0003,3]
[381540557,1756272644018,-212.11506658,0.0003,120]
[381540558,1756272644027,-758.92510499,0.0003,120]
[381540559,1756272644036,-6104.97417833,0.0003,30]
[381540560,1756272644045,-253.68533859,0.0003,120]
[381540561,1756272644055,-633.48701771,0.0003,120]
[381540562,1756272644065,-375.76980098,0.0003,120]
[381540563,1756272644075,-417.30639954,0.0003,30]
[381540564,1756272644085,-169.0,0.0003,14]
[381540565,1756272644094,-164.0,0.0003,14]
[381540566,1756272644103,-367.72,0.00030012,15]
[381540567,1756272644113,-336.39,0.00030013,15]
[381540568,1756272644123,-150.4,0.00030017,15]
[381540569,1756272644132,-367.72,0.00030112,15]
[381540570,1756272644141,-336.39,0.00030113,15]
[381540571,1756272644151,-150.4,0.00030117,15]
[381540572,1756272644160,-284.30044916,0.0003013,2]
[381540573,1756272644169,-300.0,0.00030137,2]
[381540574,1756272644179,-300.0,0.00030137,2]
[381540575,1756272644188,-550.0,0.00030164,5]
[381540576,1756272644197,-181.12497587,0.00030168,103]
[381540577,1756272644206,-979.01213485,0.000302,2]
[381540578,1756272644216,-13559.14,0.000302,2]
[381540579,1756272644226,-367.72,0.00030212,15]
[381540580,1756272644236,-336.39,0.00030213,15]
[381540581,1756272644246,-150.4,0.00030217,15]
[381540582,1756272644256,-3202.8013304,0.00030218,2]
[381540583,1756272644265,-543.0,0.00030244,13]
[381540584,1756272644275,-4000.0,0.00030248,2]
[381540585,1756272644284,-1082.28377712,0.00030259,13]
[381540586,1756272644293,-760.0,0.00030299,2]
[381540587,1756272644301,-367.72,0.00030312,15]
[381540588,1756272644310,-336.39,0.00030313,15]
[381540589,1756272644319,-150.4,0.00030317,15]
[381540590,1756272644329,-151.0,0.000304,10]
[381540591,1756272644339,-164.0,0.00030411,14]
[381540592,1756272644350,-367.72,0.00030412,15]
[381540593,1756272644360,-336.39,0.00030413,15]
[381540594,1756272644369,-150.4,0.00030417,15]
[381540595,1756272644378,-866.14197191,0.0003046,30]
[381540596,1756272644389,-367.72,0.00030512,15]
[381540597,1756272644398,-336.39,0.00030513,15]
[381540598,1756272644407,-150.4,0.00030517,15]
[381540599,1756272644416,-543.0,0.00030518,13]
[381540600,1756272644425,-500.0,0.00030521,5]
[381540601,1756272644435,-5000.0,0.00030542,2]
[381540602,1756272644444,-367.72,0.00030612,15]
[381540603,1756272644453,-336.39,0.00030613,15]
[381540604,1756272644463,-150.4,0.00030617,15]
[381540605,1756272644472,-200.0,0.00030683,120]
[381540606,1756272644482,-367.72,0.00030712,15]
[381540607,1756272644491,-650.0,0.00030712,5]
[381540608,1756272644501,-336.39,0.00030713,15]
[381540609,1756272644510,-150.4,0.00030717,15]
[381540610,1756272644520,-543.0,0.00030792,13]
[381540611,1756272644529,-367.72,0.00030812,15]
[381540612,1756272644538,-336.39,0.00030813,15]
[381540613,1756272644547,-150.4,0.00030817,15]
[381540614,1756272644556,-860.0,0.00030847,2]
[381540615,1756272644565,-252.720961,0.00030877,2]
[381540616,1756272644574,-6000.0,0.00030894,3]
[381540617,1756272644583,-232.59867797,0.000309,3]
[381540618,1756272644592,-367.72,0.00030912,15]
[381540619,1756272644601,-336.39,0.00030913,15]
[381540620,1756272644611,-150.4,0.00030917,15]
[381540621,1756272644620,-161.04,0.00030939,120]
[381540622,1756272644629,-209.40437684,0.00030949,2]
[381540623,1756272644638,-151.0,0.00030962,7]
[381540624,1756272644647,-177.197055,0.00030962,7]
[381540625,1756272644657,-177.197055,0.00030962,7]
[381540626,1756272644666,-177.197055,0.00030962,7]
[381540627,1756272644675,-177.197055,0.00030962,7]
[381540628,1756272644684,-163.19812,0.00030962,7]
[381540629,1756272644693,-151.0,0.00030962,7]
[381540630,1756272644702,-151.0,0.00030962,7]
[381540631,1756272644711,-151.0,0.00030962,7]
[381540632,1756272644720,-174.391319,0.00030962,7]
[381540633,1756272644730,-174.391319,0.00030962,7]
[381540634,1756272644739,-174.391319,0.00030962,7]
[381540635,1756272644748,-174.391319,0.00030962,7]
[381540636,1756272644757,-163.036903,0.00030962,7]
[381540637,1756272644767,-302.78678267,0.0003099,2]
[381540638,1756272644776,-151.0,0.00031,12]
[381540639,1756272644786,-154.0,0.00031,120]
[381540640,1756272644795,-217.23771399,0.00031,120]
[381540641,1756272644804,-232.59867797,0.00031,120]
[381540642,1756272644814,-845.298898,0.00031,3]
[381540643,1756272644823,-845.298898,0.00031,120]
[381540644,1756272644832,-160.0,0.00031,3]
[381540645,1756272644842,-160.0,0.00031,3]
[381540646,1756272644851,-367.72,0.00031012,15]
[381540647,1756272644861,-336.39,0.00031013,15]
[381540648,1756272644870,-150.4,0.00031017,15]
[381540649,1756272644880,-6000.0,0.00031028,3]
[381540650,1756272644889,-543.0,0.00031066,13]
[381540651,1756272644898,-45163.13,0.000311,7]
[381540652,1756272644907,-3051.21,0.000311,7]
[381540653,1756272644917,-367.72,0.00031112,15]
[381540654,1756272644926,-336.39,0.00031113,15]
[381540655,1756272644935,-150.4,0.00031117,15]
[381540656,1756272644944,-4729.79,0.000312,7]
[381540657,1756272644953,-367.72,0.00031212,15]
[381540658,1756272644963,-336.39,0.00031213,15]
[381540659,1756272644973,-150.4,0.00031217,15]
[381540660,1756272644983,-635.77020053,0.0003126,5]
[381540661,1756272644995,-367.72,0.00031312,15]
[381540662,1756272645004,-336.39,0.00031313,15]
[381540663,1756272645013,-150.4,0.00031317,15]
[381540664,1756272645022,-543.0,0.0003134,13]
[381540665,1756272645036,-1218.30254757,0.00031394,28]
[381540666,1756272645046,-960.0,0.00031395,2]
[381540667,1756272645055,-714.6415737,0.00031404,2]
[381540668,1756272645065,-367.72,0.00031412,15]
[381540669,1756272645076,-336.39,0.00031413,15]
[381540670,1756272645086,-150.4,0.00031417,15]
[381540671,1756272645096,-5788.05578861,0.00031452,2]
[381540672,1756272645466,-8674.35844711,0.00031452,2]
[381540673,1756272645476,-30254.87528619,0.00031452,2]
[381540674,1756272645485,-151.28821919,0.00031489,2]
[381540675,1756272645495,-367.72,0.00031512,15]
[381540676,1756272645505,-336.39,0.00031513,15]
[381540677,1756272645514,-150.4,0.00031517,15]
[381540678,1756272645523,-2600.6177652,0.00031551,49]
[381540679,1756272645533,-372837.83181817,0.00031552,20]
[381540680,1756272645542,-46352.42226584,0.00031552,2]
[381540687,1756272646716,-12.30790648,0.0002798,7]
[381540688,1756272647308,-279.30057253,0.00025508,10]
[381540690,1756272748309,865.82702187,0.000199,2]
[381540693,1756272866791,-224.37152812,0.000214,2]
[381540694,1756272869261,-8051.89920085,0.000214,2]
[381540695,1756272869393,-10000.01,0.000214,2]
[381540696,1756272869547,-10000.01,0.000214,2]
[381540697,1756272869601,-237.1030353,0.000214,2]
[381540698,1756272869676,-10000.01,0.000214,2]
[381540699,1756272869858,-10000.01,0.000214,2]
[381540700,1756272870019,-10000.01,0.000214,2]
[381540701,1756272870192,-10000.01,0.000214,2]
[381540702,1756272870658,-10000.01,0.000214,2]
[381540703,1756272870810,-1228.45376427,0.000214,2]
[381540704,1756272870834,-7543.10247146,0.000214,2]
[381540705,1756272870961,-5000.0,0.0002141,2]
[381540706,1756272871073,-0.01,0.00021627,2]
[381540707,1756272873225,-167.3945075,0.00021399,2]
[381540708,1756272874930,-334.15266481,0.00021399,2]
[381540709,1756272876486,-177.20864616,0.00021399,2]
[381540710,1756272876508,-24.33667624,0.00021399,2]
[381540711,1756272880867,-203.08268666,0.00021399,2]
[381540712,1756272880891,-3.9948512,0.00021399,2]
[381540713,1756272883024,-301.49648334,0.00021399,2]
[381540714,1756272885155,-180.135331,0.00021399,2]
[381540715,1756272891726,-167.3945075,0.00021399,2]
[381540716,1756272893252,-25.73464543,0.00021399,2]
[381540717,1756272893275,-233.52848602,0.00021399,2]
[381540718,1756272896880,-291.71201477,0.00021399,2]
[381540719,1756272898819,-153.51531768,0.00021399,2]
[381540720,1756272898842,-22.03100294,0.00021399,2]
[381540721,1756272899307,-656.72481553,0.00021399,2]
[381540722,1756272899554,-678.75581847,0.00021399,2]
[381540723,1756272899583,-678.75581847,0.00021399,2]
[381540724,1756272899612,-678.75581847,0.00021399,2]
[381540725,1756272899640,-678.75581847,0.00021399,2]
[381540726,1756272899670,-678.75581847,0.00021399,2]
[381540727,1756272899699,-678.75581847,0.00021399,2]
[381540728,1756272899767,-678.75581847,0.00021399,2]
[381540729,1756272899799,-678.75581847,0.00021399,2]
[381540730,1756272899829,-678.75581847,0.00021399,2]
[381540731,1756272899859,-678.75581847,0.00021399,2]
[381540732,1756272899890,-226.40044051,0.00021399,2]
[381540733,1756272899919,-678.75581847,0.00021399,2]
[381540734,1756272899949,-678.75581847,0.00021399,2]
[381540735,1756272899978,-678.75581848,0.00021399,2]
[381540736,1756272900066,-678.75581848,0.00021399,2]
[381540737,1756272900104,-678.75581848,0.00021399,2]
[381540738,1756272900135,-678.75581848,0.00021399,2]
[381540739,1756272900167,-678.75581848,0.00021399,2]
[381540740,1756272900199,-678.75581848,0.00021399,2]
[381540741,1756272900231,-678.75581848,0.00021399,2]
[381540742,1756272900261,-678.75581848,0.00021399,2]
[381540743,1756272900389,-678.75581848,0.00021399,2]
[381540744,1756272900418,-678.75581848,0.00021399,2]
[381540745,1756272900446,-678.75581848,0.00021399,2]
[381540746,1756272900477,-865.81702169,0.00021627,2]
[381540747,1756272902025,4195.84104574,0.00021,3]
[381540748,1756272902049,804.15895426,0.00021,3]
[381540749,1756272902428,300.0,0.00021398,2]
[381540750,1756272903613,500.0,0.00021399,2]
[381540751,1756272903813,500.0,0.00021399,2]
[381540752,1756272903975,500.0,0.00021399,2]
[381540753,1756272904022,500.0,0.00021399,2]
[381540754,1756272904094,1200.0,0.00021398,2]
[381540755,1756272904241,500.0,0.00021399,2]
[381540756,1756272904334,500.0,0.00021399,2]
[381540757,1756272904386,500.0,0.00021399,2]
[381540758,1756272904848,500.0,0.00021399,2]
[381540759,1756272925891,5000.0,0.00021,3]
[381540760,1756272929289,1247.00379687,0.000199,2]
[381540761,1756272930206,-210.1918474,0.00021399,2]
[381540762,1756272932374,-202.28984823,0.00021399,2]
[381540763,1756272933975,-91.519679,0.00021399,2]
[381540764,1756272934003,-125.480321,0.00021627,2]
[381540765,1756272937698,-446.70365809,0.00021627,2]
[381540766,1756272940903,-197.39813241,0.00021627,2]
[381540767,1756272942508,-265.19483079,0.0002141,3]
[381540768,1756272945725,-167.3945075,0.0002141,3]
[381540769,1756272948039,-167.3945075,0.0002141,3]
[381540770,1756272952782,-303.80212423,0.0002141,3]
[381540771,1756272956294,-184.65371501,0.0002141,3]
[381540772,1756272957887,-168.29647525,0.0002141,3]
[381540773,1756272960104,-168.53752178,0.0002141,3]
[381540774,1756272961766,-215.39313076,0.0002141,3]
[381540775,1756272964131,-12.45988801,0.0002141,3]
[381540776,1756272964159,-175.54011199,0.00021627,2]
[381540777,1756272966938,-254.70720371,0.00021627,2]
[381540778,1756272968613,-47.17436965,0.00021627,2]
[381540779,1756273004447,-5000.0,0.00023034,2]
[381540780,1756273004596,-1247.00379685,0.00023353,2]
[381540781,1756273004625,-1680.0,0.00023377,2]
[381540782,1756273004652,-511.943674,0.00024677,2]
[381540783,1756273004679,-160.0,0.00024714,2]
[381540784,1756273004708,-300.0,0.00024714,2]
[381540785,1756273004966,-4540.7513451,0.00024715,2]
[381540786,1756273004995,-159.19355403,0.00025009,2]
[381540787,1756273005026,-100.12020174,0.00025009,2]
[381540788,1756273005093,-399.87979826,0.00025009,2]
[381540789,1756273005126,-500.0,0.00025009,2]
[381540790,1756273005156,-500.0,0.00025009,2]
[381540791,1756273005186,-500.0,0.00025009,2]
[381540792,1756273005218,-500.0,0.00025009,2]
[381540793,1756273005249,-500.0,0.00025009,2]
[381540794,1756273005278,-500.0,0.00025009,2]
[381540795,1756273005306,-500.0,0.00025009,2]
[381540796,1756273005335,-500.0,0.00025009,2]
[381540797,1756273005365,-500.0,0.00025009,2]
[381540798,1756273005731,-500.0,0.00025009,2]
[381540799,1756273005760,-500.0,0.00025009,2]
[381540800,1756273011314,-500.0,0.00025009,2]
[381540801,1756273011345,-500.0,0.00025009,2]
[381540802,1756273011375,-500.0,0.00025009,2]
[381540803,1756273011405,-500.0,0.00025009,2]
[381540804,1756273011437,-425.44119842,0.0002501,2]
[381540805,1756273011464,-160.0,0.0002501,2]
[381540806,1756273011493,-845.298898,0.0002501,2]
[381540807,1756273011522,-217.23771399,0.0002501,2]
[381540808,1756273011550,-216.14835892,0.00025031,2]
[381540809,1756273011577,-529.56067766,0.00025031,2]
[381540810,1756273011604,-160.0,0.00025065,2]
[381540811,1756273011631,-392.63630602,0.00025073,2]
[381540812,1756273011797,-500.0,0.00025009,2]
[381540813,1756273011826,-107.36369398,0.00025073,2]
[381540814,1756273011853,-500.0,0.00025073,2]
[381540815,1756273011880,-257.23327544,0.00025073,2]
[381540816,1756273011909,-500.0,0.00025073,2]
[381540817,1756273011936,-500.0,0.00025073,2]
[381540818,1756273011964,-500.0,0.00025073,2]
[381540819,1756273011991,-500.0,0.00025073,2]
[381540820,1756273012019,-500.0,0.00025073,2]
[381540821,1756273012045,-151.0,0.00025073,2]
[381540822,1756273012072,-500.0,0.00025073,2]
[381540823,1756273012829,-500.0,0.00025009,2]
[381540824,1756273012861,-1247.00379685,0.0002508,2]
[381540825,1756273012889,-1200.0,0.00025089,2]
[381540826,1756273013203,-500.0,0.00025009,2]
[381540827,1756273013526,-3817.58519202,0.0002509,2]
[381540828,1756273013543,-8890.16526105,0.0002509,2]
[381540829,1756273013552,-1109.84473895,0.0002509,2]
[381540830,1756273013585,-500.0,0.0002509,2]
[381540831,1756273013602,-3390.15526105,0.0002509,2]
[381540833,1756273080484,218.2,0.00015984,7]
[381540834,1756273080762,218.19,0.00015984,2]
[381540835,1756273105547,1235.58103591,0.000199,2]
[381540836,1756273106366,-268.69617012,0.00021627,2]
[381540837,1756273107771,-213.34329981,0.00021627,2]
[381540838,1756273110105,-178.02437,0.00021627,2]
[381540839,1756273115511,-189.60509885,0.00021519,6]
[381540840,1756273118231,-331.4970812,0.00021519,6]
[381540841,1756273122971,-83.92987152,0.00021519,6]
[381540842,1756273122998,-178.47786459,0.00021627,2]
[381540843,1756273125740,-186.25526511,0.00021627,2]
[381540844,1756273128369,-210.78406626,0.00021627,2]
[381540845,1756273128396,-31.03148132,0.00021734,6]
[381540846,1756273129928,-177.01210144,0.00021734,6]
[381540847,1756273134989,-248.508858,0.00021734,6]
[381540848,1756273139523,-156.71805524,0.00021734,6]
[381540849,1756273248192,161.04,0.0002605,120]
[381540850,1756273285439,1153.20896685,0.000199,2]
[381540851,1756273286270,-190.644576,0.00021627,2]
[381540852,1756273288980,-354.42194815,0.00021627,2]
[381540853,1756273291297,-299.63553772,0.00021627,2]
[381540854,1756273294764,-230.23926981,0.00021627,2]
[381540855,1756273296227,-78.26763515,0.00021627,2]
[381540856,1756273310069,-162.06972334,0.00022569,5]
[381540857,1756273310098,-361.56773111,0.00022804,3]
[381540858,1756273310128,-3952.7350911,0.00023034,3]
[381540859,1756273310360,-1047.2649089,0.00023034,3]
[381540860,1756273310393,-1153.20896683,0.00023353,2]
[381540861,1756273310421,-300.0,0.00025003,2]
[381540862,1756273310448,-160.0,0.00025003,2]
[381540863,1756273310476,-224.42901095,0.00025004,2]
[381540864,1756273310507,-543.28271377,0.00025004,2]
[381540865,1756273310535,-261.94395999,0.00025004,2]
[381540866,1756273310563,-500.0,0.00025004,2]
[381540867,1756273310591,-500.0,0.00025004,2]
[381540868,1756273310618,-119.75087912,0.00025004,2]
[381540869,1756273310780,-380.24912088,0.00025004,2]
[381540870,1756273310809,-500.0,0.00025004,2]
[381540871,1756273311040,-500.0,0.00025004,2]
[381540872,1756273311070,-214.55154128,0.00025004,2]
[381540873,1756273311098,-500.0,0.00025004,2]
[381540874,1756273311127,-500.0,0.00025004,2]
[381540875,1756273311155,-500.0,0.00025004,2]
[381540876,1756273311187,-500.0,0.00025004,2]
[381540877,1756273311216,-546.08245339,0.00025004,2]
[381540878,1756273311244,-500.0,0.00025004,2]
[381540879,1756273311273,-278.98021931,0.00025004,2]
[381540880,1756273311432,-160.28333028,0.00025004,2]
[381540881,1756273311460,-489.40529147,0.00025004,2]
[381540882,1756273311490,-500.0,0.00025004,2]
[381540883,1756273311519,-500.0,0.00025004,2]
[381540884,1756273311547,-500.0,0.00025004,2]
[381540885,1756273311577,-500.0,0.00025004,2]
[381540886,1756273311605,-500.0,0.00025004,2]
[381540887,1756273311634,-265.17572711,0.00025004,2]
[381540888,1756273311663,-500.0,0.00025004,2]
[381540889,1756273311691,-412.08298635,0.00025004,2]
[381540890,1756273311721,-500.0,0.00025004,2]
[381540891,1756273311892,-500.0,0.00025004,2]
[381540892,1756273311923,-500.0,0.00025004,2]
[381540893,1756273311955,-500.0,0.00025004,2]
[381540894,1756273311989,-500.0,0.00025004,2]
[381540895,1756273312021,-253.23283528,0.00025004,2]
[381540896,1756273312054,-500.0,0.00025004,2]
[381540897,1756273312086,-500.0,0.00025004,2]
[381540898,1756273312116,-500.0,0.00025004,2]
[381540899,1756273312145,-500.0,0.00025004,2]
[381540900,1756273312176,-160.0,0.00025006,2]
[381540901,1756273312271,-500.0,0.00025004,2]
[381540902,1756273312302,-1200.0,0.00025008,2]
[381540903,1756273312508,-159.79177194,0.00025004,2]
[381540904,1756273312539,-500.0,0.00025004,2]
[381540905,1756273312569,-500.0,0.00025004,2]
[381540906,1756273312598,-500.0,0.00025004,2]
[381540907,1756273312735,-500.0,0.00025004,2]
[381540908,1756273312766,-500.0,0.00025004,2]
[381540909,1756273312920,-500.0,0.00025004,2]
[381540910,1756273313169,-500.0,0.00025004,2]
[381540911,1756273313942,-3470.75465353,0.00025008,2]
[381540912,1756273313973,-159.79177194,0.00025008,2]
[381540913,1756273313992,-500.0,0.00025008,2]
[381540914,1756273314010,-500.0,0.00025008,2]
[381540915,1756273314025,-500.0,0.00025008,2]
[381540916,1756273314040,-6680.42645612,0.00025008,2]
[381540917,1756273314078,-500.0,0.00025008,2]
[381540918,1756273314094,-500.0,0.00025008,2]
[381540919,1756273314112,-8000.01,0.00025008,2]
[381540920,1756273314142,-500.0,0.00025008,2]
[381540921,1756273314199,-9000.01,0.00025008,2]
[381540922,1756273314249,-500.0,0.00025008,2]
[381540923,1756273314269,-9000.01,0.00025008,2]
[381540926,1756273358245,339.415213,0.00013699,2]
[381540927,1756273359553,-173.36637591,0.00020187,2]
[381540928,1756273361195,-166.04883709,0.00020187,2]
[381540937,1756273435198,-0.01,0.00024006,2]
[381540938,1756273435233,-9660.574787,0.00024006,2]
[381540939,1756273435380,-339.415213,0.00024006,2]
[381540940,1756273435409,-666.0,0.00024027,2]
[381540941,1756273435439,-2989.179574,0.00024758,3]
[381540942,1756273435488,-2010.820426,0.00024758,3]
[381540943,1756273435550,-300.0,0.00025002,2]
[381540944,1756273435580,-500.0,0.00025003,2]
[381540945,1756273435609,-458.15093132,0.00025003,2]
[381540946,1756273435637,-500.0,0.00025003,2]
[381540947,1756273435666,-500.0,0.00025003,2]
[381540948,1756273435695,-500.0,0.00025003,2]
[381540949,1756273435724,-500.0,0.00025003,2]
[381540950,1756273435751,-212.45366515,0.00025003,2]
[381540951,1756273435780,-562.5,0.00025003,2]
[381540952,1756273435808,-500.0,0.00025003,2]
[381540953,1756273436052,-374.79189238,0.00025003,2]
[381540954,1756273436271,-184.2170223,0.00025003,2]
[381540955,1756273436299,-500.0,0.00025003,2]
[381540956,1756273436328,-500.0,0.00025003,2]
[381540957,1756273436357,-500.0,0.00025003,2]
[381540958,1756273436386,-500.0,0.00025003,2]
[381540959,1756273436414,-500.0,0.00025003,2]
[381540960,1756273436442,-500.0,0.00025003,2]
[381540961,1756273436470,-500.0,0.00025003,2]
[381540962,1756273436498,-500.0,0.00025003,2]
[381540963,1756273436526,-500.0,0.00025003,2]
[381540964,1756273436554,-131.5759554,0.00025003,2]
[381540965,1756273436773,-368.4240446,0.00025003,2]
[381540966,1756273436803,-500.0,0.00025003,2]
[381540967,1756273436832,-500.0,0.00025003,2]
[381540968,1756273436861,-500.0,0.00025003,2]
[381540969,1756273436889,-500.0,0.00025003,2]
[381540970,1756273436917,-500.0,0.00025003,2]
[381540971,1756273436946,-650.0,0.00025003,2]
[381540972,1756273436975,-441.04797358,0.00025003,2]
[381540973,1756273437514,-111.59309332,0.00025003,2]
[381540974,1756273437529,-441.04797358,0.00025003,2]
[381540975,1756273437556,-2081.06596364,0.00025003,2]
[381540976,1756273437602,-10000.01,0.00025003,2]
[381540977,1756273437626,-10000.01,0.00025003,2]
[381540978,1756273437659,-10000.01,0.00025003,2]
[381540979,1756273437684,-10000.01,0.00025003,2]
[381540980,1756273437789,-7366.25296946,0.00025003,2]
[381540981,1756273437798,-160.0,0.00025005,2]
[381540982,1756273437808,-1200.0,0.00025007,2]
[381540983,1756273437817,-202.12913215,0.00025008,2]
[381540984,1756273437828,-500.0,0.00025008,2]
[381540985,1756273437838,-500.0,0.00025008,2]
[381540986,1756273437847,-71.62789839,0.00025008,2]
[381540988,1756273459674,1523.01721295,0.000199,2]
[381540989,1756273460744,-193.7578808,0.00021627,2]
[381540990,1756273462935,-306.2421192,0.00021627,2]
[381540991,1756273464493,-152.0,0.00021627,2]
[381540992,1756273466735,-286.63835153,0.00021627,2]
[381540993,1756273469994,-317.7507465,0.00021627,2]
[381540994,1756273474372,-158.63448031,0.00021627,2]
[381540995,1756273476553,-107.99363459,0.00021627,2]
[381540996,1756273530310,204.0,0.00025365,120]
[381540997,1756273535403,-1523.01721293,0.00023353,2]
[381540998,1756273535435,-1953.97557414,0.00024757,2]
[381540999,1756273535495,-1523.00721293,0.00024757,2]
[381541000,1756273535617,-1523.01721293,0.00024757,2]
[381541001,1756273535650,-181.31248779,0.00024907,81]
[381541002,1756273535681,-2841.62706706,0.00024927,2]
[381541003,1756273535850,-908.09646444,0.00024927,2]
[381541004,1756273535895,-417.15472785,0.00024941,2]
[381541005,1756273535959,-9165.7005443,0.00025,2]
[381541006,1756273535981,-10000.01,0.00025,2]
[381541007,1756273536059,-10000.01,0.00025,2]
[381541008,1756273536237,-10000.01,0.00025,2]
[381541009,1756273536728,-10000.01,0.00025,2]